fUST/lending_fUST_20241113
["ID","MTS","AMOUNT","RATE_DAILY","PERIOD"]
[342095705,1731433841512,-500.0,0.00021917,2]
[342095706,1731433841521,-500.0,0.00021917,2]
[342095707,1731433841531,-500.0,0.00021917,2]
[342095708,1731433841540,-500.0,0.00021917,2]
[342095709,1731433841549,-500.0,0.00021917,2]
[342095710,1731433841559,-500.0,0.00021917,2]
[342095711,1731433841569,-500.0,0.00021917,2]
[342095712,1731433841578,-500.0,0.00021917,2]
[342095713,1731433841587,-500.0,0.00021917,2]
[342095714,1731433841596,-500.0,0.00021917,2]
[342095715,1731433841605,-502.26882393,0.00021917,2]
[342095716,1731433841614,-500.0,0.00021917,2]
[342095717,1731433841624,-500.0,0.00021917,2]
[342095718,1731433841633,-500.0,0.00021917,2]
[342095719,1731433841644,-500.0,0.00021917,2]
[342095720,1731433841654,-159.34084285,0.00021917,2]
[342095721,1731433841664,-500.0,0.00021917,2]
[342095722,1731433841674,-557.1130637,0.00021917,2]
[342095723,1731433841683,-500.0,0.00021917,2]
[342095724,1731433841692,-500.0,0.00021917,2]
[342095725,1731433841701,-500.0,0.00021917,2]
[342095726,1731433841711,-514.92592339,0.00021917,2]
[342095727,1731433841720,-500.0,0.00021917,2]
[342095728,1731433841730,-500.0,0.00021917,2]
[342095729,1731433841742,-500.0,0.00021917,2]
[342095730,1731433841751,-546.92497959,0.00021917,2]
[342095731,1731433841761,-714.92,0.00021917,2]
[342095732,1731433841771,-500.0,0.00021917,2]
[342095733,1731433841780,-500.0,0.00021917,2]
[342095734,1731433841789,-500.0,0.00021917,2]
[342095735,1731433841799,-509.86,0.00021917,2]
[342095736,1731433841809,-500.0,0.00021917,2]
[342095737,1731433841818,-500.0,0.00021917,2]
[342095738,1731433841828,-500.0,0.00021917,2]
[342095739,1731433841837,-500.0,0.00021917,2]
[342095740,1731433841847,-500.0,0.00021917,2]
[342095741,1731433841856,-500.0,0.00021917,2]
[342095742,1731433841866,-500.0,0.00021917,2]
[342095743,1731433841875,-503.85487959,0.00021917,2]
[342095744,1731433841885,-500.0,0.00021917,2]
[342095745,1731433841896,-500.90022575,0.00021917,2]
[342095746,1731433841905,-541.66218328,0.00021917,2]
[342095747,1731433841915,-500.0,0.00021917,2]
[342095748,1731433841925,-500.0,0.00021917,2]
[342095749,1731433841935,-500.0,0.00021917,2]
[342095750,1731433841944,-500.0,0.00021917,2]
[342095751,1731433841954,-500.0,0.00021917,2]
[342095752,1731433841963,-500.0,0.00021917,2]
[342095753,1731433841973,-500.0,0.00021917,2]
[342095754,1731433841983,-500.0,0.00021917,2]
[342095755,1731433841998,-500.0,0.00021917,2]
[342095756,1731433842017,-500.0,0.00021917,2]
[342095757,1731433842028,-500.0,0.00021917,2]
[342095758,1731433842038,-500.0,0.00021917,2]
[342095759,1731433842048,-500.0,0.00021917,2]
[342095760,1731433842059,-500.0,0.00021917,2]
[342095761,1731433842069,-500.0,0.00021917,2]
[342095762,1731433842079,-151.0,0.00021917,2]
[342095763,1731433842089,-151.0,0.00021917,2]
[342095764,1731433842099,-500.0,0.00021917,2]
[342095765,1731433842113,-500.0,0.00021917,2]
[342095766,1731433842123,-151.0,0.00021917,2]
[342095767,1731433842133,-500.0,0.00021917,2]
[342095768,1731433842143,-500.0,0.00021917,2]
[342095769,1731433842154,-216.08757655,0.00021917,2]
[342095770,1731433842164,-500.0,0.00021917,2]
[342095771,1731433842173,-500.0,0.00021917,2]
[342095772,1731433842185,-500.0,0.00021917,2]
[342095773,1731433842198,-500.0,0.00021917,2]
[342095774,1731433842209,-500.0,0.00021917,2]
[342095775,1731433842227,-501.94858598,0.00021917,2]
[342095777,1731433842240,-500.0,0.00021917,2]
[342095778,1731433842250,-500.0,0.00021917,2]
[342095779,1731433842260,-496.51696847,0.00021917,2]
[342095780,1731433842270,-500.0,0.00021917,2]
[342095781,1731433842280,-1000.0,0.00021917,2]
[342095782,1731433842290,-500.0,0.00021917,2]
[342095783,1731433842300,-500.0,0.00021917,2]
[342095784,1731433842309,-500.0,0.00021917,2]
[342095785,1731433842320,-216.76211118,0.00021917,2]
[342095786,1731433842331,-500.0,0.00021917,2]
[342095788,1731433842341,-500.0,0.00021917,2]
[342095789,1731433842350,-500.0,0.00021917,2]
[342095790,1731433842360,-500.0,0.00021917,2]
[342095791,1731433842370,-500.0,0.00021917,2]
[342095792,1731433842379,-500.0,0.00021917,2]
[342095793,1731433842389,-379.34914786,0.00021917,2]
[342095794,1731433842398,-500.0,0.00021917,2]
[342095795,1731433842408,-500.0,0.00021917,2]
[342095797,1731433842531,-483.50654081,0.00021917,2]
[342095798,1731433842541,-560.20270371,0.00021917,2]
[342095799,1731433842550,-500.0,0.00021917,2]
[342095800,1731433842560,-500.0,0.00021917,2]
[342095801,1731433842570,-500.0,0.00021917,2]
[342095802,1731433842579,-500.0,0.00021917,2]
[342095803,1731433842588,-500.0,0.00021917,2]
[342095804,1731433842597,-500.0,0.00021917,2]
[342095805,1731433842607,-6242.7,0.00021917,2]
[342095806,1731433842616,-6242.7,0.00021917,2]
[342095807,1731433842626,-6242.7,0.00021917,2]
[342095808,1731433842635,-5350.27349174,0.00021917,2]
[342095809,1731433842658,-892.42650826,0.00021917,2]
[342095810,1731433842667,-477.57349174,0.00021917,2]
[342095822,1731433842972,-177.38,0.00021907,3]
[342095823,1731433842981,-313.26257089,0.00021917,2]
[342095825,1731433843035,-1063.265605,0.00021917,2]
[342095949,1731433877308,1138.44136002,0.00020128,3]
[342095957,1731434259665,166.267225,0.00013973,2]
[342095959,1731434404643,1169.27083333,0.00020185,2]
[342095964,1731434515522,1062.61575961,0.000201,2]
[342095965,1731434515554,20000.0,0.000201,2]
[342095966,1731434515586,20000.0,0.000201,2]
[342095967,1731434515618,20000.0,0.000201,2]
[342095968,1731434515649,20000.0,0.000201,2]
[342095969,1731434515682,20000.0,0.000201,2]
[342095970,1731434515715,20000.0,0.000201,2]
[342095971,1731434515753,20000.0,0.000201,2]
[342095972,1731434515783,459977.87172826,0.000201,2]
[342096021,1731434952847,166.81813,0.00013973,2]
[342096071,1731435032793,-1485.026114,0.00019053,2]
[342096072,1731435032803,-300.0,0.00019062,2]
[342096073,1731435032813,-300.0,0.00019062,2]
[342096074,1731435032823,-95.783886,0.00019063,2]
[342096075,1731435032873,-17597.5817863,0.00019063,2]
[342096076,1731435032884,-571.10465154,0.00019063,2]
[342096077,1731435032899,-1185.53715728,0.00019063,2]
[342096079,1731435038076,-3167.95548058,0.00019063,2]
[342096080,1731435038087,-174.1833,0.00019178,2]
[342096081,1731435038096,-278.615,0.00019698,2]
[342096082,1731435038105,-1485.026114,0.00019738,2]
[342096083,1731435038115,-8064.67707534,0.0002,2]
[342096084,1731435038123,-1804.73884898,0.0002,2]
[342096085,1731435038133,-161.70950878,0.00020073,2]
[342096086,1731435038142,-500.0,0.00020073,2]
[342096087,1731435038153,-500.0,0.00020073,2]
[342096088,1731435038163,-200.46969255,0.00020073,2]
[342096089,1731435038172,-500.0,0.00020073,2]
[342096090,1731435038181,-500.0,0.00020073,2]
[342096091,1731435038191,-212.93592414,0.00020073,2]
[342096092,1731435038200,-500.0,0.00020073,2]
[342096093,1731435038210,-500.0,0.00020073,2]
[342096094,1731435038219,-500.0,0.00020073,2]
[342096095,1731435038228,-500.0,0.00020073,2]
[342096096,1731435038238,-500.0,0.00020073,2]
[342096097,1731435038247,-500.0,0.00020073,2]
[342096098,1731435038257,-500.0,0.00020073,2]
[342096099,1731435038266,-500.0,0.00020073,2]
[342096100,1731435038276,-500.0,0.00020073,2]
[342096101,1731435038285,-150.81008166,0.00020073,2]
[342096102,1731435038294,-500.0,0.00020073,2]
[342096104,1731435038303,-330.1849991,0.00020073,2]
[342096106,1731435038313,-496.79834972,0.00020073,2]
[342096108,1731435038322,-500.99652449,0.00020073,2]
[342096109,1731435038331,-500.0,0.00020073,2]
[342096111,1731435038340,-407.30648268,0.00020073,2]
[342096112,1731435038349,-173.16888546,0.00020073,2]
[342096113,1731435038359,-431.3160879,0.00020073,2]
[342096114,1731435038368,-500.0,0.00020073,2]
[342096115,1731435038378,-363.72709278,0.00020073,2]
[342096116,1731435038386,-500.0,0.00020073,2]
[342096117,1731435038397,-500.0,0.00020073,2]
[342096118,1731435038406,-500.0,0.00020073,2]
[342096119,1731435038415,-160.59037097,0.00020073,2]
[342096120,1731435038424,-160.57402892,0.00020073,2]
[342096121,1731435038434,-500.0,0.00020073,2]
[342096122,1731435038443,-500.0,0.00020073,2]
[342096123,1731435038453,-299.72747928,0.00020073,2]
[342096124,1731435038466,-500.0,0.00020073,2]
[342096125,1731435038475,-605.88640843,0.00020073,2]
[342096126,1731435038485,-500.0,0.00020073,2]
[342096127,1731435038494,-500.15231135,0.00020073,2]
[342096128,1731435038504,-205.23049862,0.00020073,2]
[342096129,1731435038514,-1391.71968812,0.00020073,2]
[342096130,1731435038523,-500.0,0.00020073,2]
[342096131,1731435038533,-500.0,0.00020073,2]
[342096132,1731435038543,-561.03925293,0.00020073,2]
[342096133,1731435038554,-180.85,0.00020088,3]
[342096134,1731435038565,-150.71,0.00020088,3]
[342096135,1731435038574,-452.15,0.00020088,3]
[342096136,1731435038583,-361.71,0.00020089,3]
[342096137,1731435038593,-723.42,0.0002009,3]
[342096138,1731435038602,-500.0,0.00020097,2]
[342096139,1731435038612,-500.0,0.00020097,2]
[342096140,1731435038622,-500.0,0.00020097,2]
[342096141,1731435038632,-500.0,0.00020097,2]
[342096142,1731435038644,-500.0,0.00020097,2]
[342096143,1731435038653,-500.0,0.00020097,2]
[342096144,1731435038662,-500.0,0.00020097,2]
[342096145,1731435038672,-500.0,0.00020097,2]
[342096146,1731435038682,-500.0,0.00020097,2]
[342096147,1731435038691,-379.66758359,0.00020097,2]
[342096148,1731435038701,-500.0,0.00020097,2]
[342096149,1731435038711,-500.0,0.00020097,2]
[342096150,1731435038720,-500.0,0.00020097,2]
[342096151,1731435038729,-386.02844406,0.00020097,2]
[342096153,1731435038739,-500.0,0.00020097,2]
[342096154,1731435038748,-500.0,0.00020097,2]
[342096155,1731435038757,-500.0,0.00020097,2]
[342096156,1731435038767,-500.0,0.00020097,2]
[342096157,1731435038776,-421.23147876,0.00020097,2]
[342096158,1731435038785,-500.0,0.00020097,2]
[342096159,1731435038794,-198.4213867,0.00020097,2]
[342096161,1731435038804,-500.0,0.00020097,2]
[342096163,1731435038813,-500.0,0.00020097,2]
[342096164,1731435038822,-250.0,0.00020097,2]
[342096165,1731435038831,-500.0,0.00020097,2]
[342096166,1731435038841,-500.0,0.00020097,2]
[342096167,1731435038850,-642.21857155,0.00020097,2]
[342096168,1731435038859,-500.0,0.00020097,2]
[342096169,1731435038868,-500.0,0.00020097,2]
[342096170,1731435038877,-500.0,0.00020097,2]
[342096171,1731435038887,-500.0,0.00020097,2]
[342096172,1731435038899,-429.98914504,0.00020097,2]
[342096173,1731435038909,-500.0,0.00020097,2]
[342096174,1731435038918,-500.0,0.00020097,2]
[342096175,1731435038927,-500.0,0.00020097,2]
[342096176,1731435038937,-500.0,0.00020097,2]
[342096177,1731435038947,-500.0,0.00020097,2]
[342096178,1731435038956,-500.0,0.00020097,2]
[342096179,1731435038965,-500.0,0.00020097,2]
[342096180,1731435038974,-500.0,0.00020097,2]
[342096181,1731435038984,-500.0,0.00020097,2]
[342096182,1731435038993,-500.0,0.00020097,2]
[342096183,1731435039002,-500.0,0.00020097,2]
[342096184,1731435039011,-500.0,0.00020097,2]
[342096185,1731435039021,-500.0,0.00020097,2]
[342096186,1731435039031,-500.0,0.00020097,2]
[342096187,1731435039041,-500.0,0.00020097,2]
[342096188,1731435039050,-500.0,0.00020097,2]
[342096189,1731435039059,-500.0,0.00020099,2]
[342096190,1731435039068,-233.12778802,0.00020099,2]
[342096191,1731435039077,-259.65845509,0.00020099,2]
[342096192,1731435039086,-500.0,0.00020099,2]
[342096193,1731435039095,-219.62652145,0.00020099,2]
[342096194,1731435039104,-222.07370653,0.00020099,2]
[342096195,1731435039113,-277.25126614,0.00020099,2]
[342096196,1731435039123,-197.78486681,0.00020099,2]
[342096197,1731435039132,-186.5077596,0.00020099,2]
[342096198,1731435039141,-510.89012741,0.00020099,2]
[342096199,1731435039152,-571.34024581,0.00020099,2]
[342096200,1731435039161,-191.02178793,0.00020099,2]
[342096201,1731435039172,-500.0,0.00020099,2]
[342096202,1731435039182,-518.63421409,0.00020099,2]
[342096203,1731435039191,-161.41015569,0.00020099,2]
[342096204,1731435039204,-229.73545398,0.00020099,2]
[342096205,1731435039213,-2524518.00016853,0.000201,2]
[342096208,1731435039470,-64600.0000001,0.000201,2]
[342096209,1731435039482,-3097.35693807,0.000201,2]
[342096213,1731435039891,-11314.94722102,0.000201,2]
[342096214,1731435039905,-10872.157335,0.000201,2]
[342096238,1731435045988,-372.18657,0.00020073,2]
[342096239,1731435046025,-255.44600053,0.00020073,2]
[342096240,1731435046035,-368.81433534,0.00020073,2]
[342096337,1731435657076,166.81813,0.00013973,2]
[342096402,1731436232794,-331.399963,0.00019065,2]
[342096403,1731436232804,-134.600037,0.00019076,2]
[342096404,1731436236441,-80.5293049,0.00019076,2]
[342096405,1731436236451,-357.9697276,0.00019076,2]
[342096406,1731436236461,-681.86529,0.00019076,2]
[342096407,1731436236470,-226.05531191,0.00019698,2]
[342096413,1731436238324,-43.25368809,0.00019698,2]
[342096414,1731436238334,-204.21075016,0.00019698,2]
[342096415,1731436238343,-681.86529,0.00019761,2]
[342096416,1731436238353,-300.0,0.00019998,2]
[342096417,1731436238362,-300.0,0.00019998,2]
[342096418,1731436238372,-6241.94164947,0.00019999,2]
[342096460,1731436240231,-536.17055041,0.00019999,2]
[342096461,1731436240240,-846.32944959,0.0002,2]
[342096477,1731436243323,-777.93551451,0.0002,2]
[342096478,1731436243333,-7727.91142372,0.0002,2]
[342096479,1731436243343,-500.67272822,0.00020073,2]
[342096480,1731436243353,-500.18368657,0.00020073,2]
[342096481,1731436243362,-501.88263939,0.00020073,2]
[342096482,1731436243372,-500.0,0.00020073,2]
[342096483,1731436243384,-500.0,0.00020073,2]
[342096484,1731436243393,-381.88204628,0.00020073,2]
[342096485,1731436243402,-500.0,0.00020073,2]
[342096486,1731436243412,-500.0,0.00020073,2]
[342096487,1731436243421,-153.30946986,0.00020073,2]
[342096488,1731436243431,-263.87702831,0.00020073,2]
[342096489,1731436243442,-500.0,0.00020073,2]
[342096490,1731436243451,-500.0,0.00020073,2]
[342096491,1731436243461,-500.0,0.00020073,2]
[342096492,1731436243471,-452.50595125,0.00020073,2]
[342096493,1731436243481,-273.24385793,0.00020073,2]
[342096494,1731436243490,-500.0,0.00020073,2]
[342096495,1731436243499,-500.0,0.00020073,2]
[342096496,1731436243508,-593.63600035,0.00020073,2]
[342096497,1731436243518,-500.0,0.00020073,2]
[342096498,1731436243527,-501.59412102,0.00020073,2]
[342096499,1731436243536,-500.0,0.00020073,2]
[342096500,1731436243545,-500.0,0.00020073,2]
[342096501,1731436243555,-500.0,0.00020073,2]
[342096502,1731436243564,-500.0,0.00020073,2]
[342096503,1731436243573,-500.0,0.00020073,2]
[342096504,1731436243582,-500.0,0.00020073,2]
[342096505,1731436243592,-304.03060309,0.00020073,2]
[342096506,1731436243601,-500.0,0.00020073,2]
[342096507,1731436243610,-500.0,0.00020073,2]
[342096508,1731436243620,-500.0,0.00020073,2]
[342096509,1731436243631,-500.0,0.00020073,2]
[342096510,1731436243641,-500.0,0.00020073,2]
[342096511,1731436243650,-159.53095238,0.00020073,2]
[342096512,1731436243659,-500.0,0.00020073,2]
[342096513,1731436243669,-162.63906102,0.00020073,2]
[342096514,1731436243678,-500.39089912,0.00020073,2]
[342096515,1731436243687,-500.0,0.00020073,2]
[342096516,1731436243697,-321.38725946,0.00020073,2]
[342096517,1731436243707,-500.0,0.00020073,2]
[342096518,1731436243716,-500.0,0.00020073,2]
[342096519,1731436243725,-500.0,0.00020073,2]
[342096520,1731436243735,-500.0,0.00020073,2]
[342096521,1731436243744,-500.0,0.00020073,2]
[342096522,1731436243753,-411.94,0.0002009,3]
[342096523,1731436243763,-205.97,0.0002009,3]
[342096524,1731436243772,-205.97,0.0002009,3]
[342096525,1731436243781,-500.0,0.00020098,2]
[342096526,1731436243790,-500.0,0.00020098,2]
[342096527,1731436243800,-491.24794209,0.00020098,2]
[342096528,1731436243809,-188.71348741,0.00020098,2]
[342096529,1731436243819,-269.99879389,0.00020098,2]
[342096530,1731436243828,-500.0,0.00020098,2]
[342096531,1731436243839,-500.0,0.00020098,2]
[342096532,1731436243852,-500.0,0.00020098,2]
[342096533,1731436243862,-500.0,0.00020098,2]
[342096534,1731436243872,-500.0,0.00020098,2]
[342096535,1731436243885,-154.00316045,0.00020098,2]
[342096536,1731436243896,-500.0,0.00020098,2]
[342096537,1731436243906,-500.0,0.00020098,2]
[342096538,1731436243916,-500.0,0.00020098,2]
[342096539,1731436243925,-500.0,0.00020098,2]
[342096540,1731436243937,-500.0,0.00020098,2]
[342096541,1731436243946,-500.0,0.00020098,2]
[342096542,1731436243955,-500.0,0.00020098,2]
[342096543,1731436243965,-500.0,0.00020098,2]
[342096544,1731436243974,-500.0,0.00020098,2]
[342096545,1731436243983,-500.0,0.00020098,2]
[342096546,1731436243993,-600.0,0.00020098,2]
[342096547,1731436244003,-200.0,0.00020098,2]
[342096548,1731436244012,-265.57290891,0.00020098,2]
[342096549,1731436244021,-500.0,0.00020098,2]
[342096550,1731436244031,-500.0,0.00020098,2]
[342096551,1731436244040,-500.0,0.00020098,2]
[342096552,1731436244049,-500.0,0.00020098,2]
[342096553,1731436244059,-500.0,0.00020098,2]
[342096554,1731436244069,-500.0,0.00020098,2]
[342096555,1731436244079,-500.0,0.00020098,2]
[342096556,1731436244088,-500.0,0.00020098,2]
[342096557,1731436244098,-500.0,0.00020098,2]
[342096558,1731436244108,-500.0,0.00020098,2]
[342096559,1731436244118,-500.0,0.00020098,2]
[342096560,1731436244129,-500.0,0.00020098,2]
[342096561,1731436244138,-500.0,0.00020098,2]
[342096562,1731436244147,-927.81312541,0.00020099,2]
[342096563,1731436244158,-503.72245063,0.00020099,2]
[342096564,1731436244167,-615.70874063,0.00020099,2]
[342096565,1731436244177,-239.40630242,0.00020099,2]
[342096566,1731436244187,-1439431.23417978,0.000201,2]
[342096567,1731436244201,-638.91133558,0.000201,2]
[342096568,1731436244218,-52377.23533405,0.000201,2]
[342096569,1731436244227,-150.112233,0.000201,4]
[342096570,1731436244237,-150.112233,0.000201,3]
[342096571,1731436244247,-150.112233,0.000201,4]
[342096572,1731436244257,-150.112233,0.000201,3]
[342096573,1731436244267,-150.112233,0.000201,4]
[342096574,1731436244277,-150.112233,0.000201,3]
[342096575,1731436244286,-150.112233,0.000201,3]
[342096576,1731436244295,-150.112233,0.000201,3]
[342096577,1731436244305,-150.112233,0.000201,3]
[342096578,1731436244315,-150.112233,0.000201,3]
[342096579,1731436244324,-150.112233,0.000201,4]
[342096580,1731436244334,-150.112233,0.000201,4]
[342096581,1731436244345,-150.112233,0.000201,3]
[342096582,1731436244354,-150.112233,0.000201,4]
[342096583,1731436244366,-164.260442,0.000201,3]
[342096584,1731436244376,-2274.91,0.000201,2]
[342096585,1731436244386,-1169.27083333,0.00020185,2]
[342096586,1731436244396,-631.0,0.00020336,2]
[342096587,1731436244405,-681.86529,0.00020446,2]
[342096588,1731436244414,-376.59375229,0.00020621,2]
[342096589,1731436244423,-161.90525432,0.00020621,2]
[342096590,1731436244432,-506.19413605,0.00020621,2]
[342096591,1731436244442,-1000.0,0.00020621,2]
[342096592,1731436244451,-500.0,0.00020621,2]
[342096593,1731436244461,-246.91170831,0.00020621,2]
[342096594,1731436244470,-1000.0,0.00020621,2]
[342096595,1731436244480,-500.05446171,0.00020621,2]
[342096596,1731436244489,-1000.0,0.00020621,2]
[342096597,1731436244498,-1000.0,0.00020621,2]
[342096598,1731436244507,-1000.0,0.00020621,2]
[342096599,1731436244517,-515.01818761,0.00020621,2]
[342096600,1731436244526,-1000.0,0.00020621,2]
[342096601,1731436244535,-332.63174225,0.00020621,2]
[342096602,1731436244545,-1113.13211248,0.00020621,2]
[342096603,1731436244554,-1000.0,0.00020621,2]
[342096604,1731436244563,-1000.0,0.00020621,2]
[342096605,1731436244573,-500.0,0.00020621,2]
[342096606,1731436244582,-504.17492273,0.00020621,2]
[342096607,1731436244591,-262.38503296,0.00020621,2]
[342096608,1731436244600,-500.0,0.00020621,2]
[342096609,1731436244610,-153.0,0.00020811,2]
[342096610,1731436244619,-153.0,0.00020811,2]
[342096611,1731436244630,-153.0,0.00020811,2]
[342096612,1731436244701,-153.0,0.00020811,2]
[342096613,1731436244718,-153.0,0.00020811,2]
[342096614,1731436244728,-162.213846,0.00020889,2]
[342096615,1731436244737,-305.1735921,0.00020986,2]
[342096616,1731436244747,-153.0,0.00020986,2]
[342096617,1731436244756,-153.0,0.00020986,2]
[342096618,1731436244766,-153.0,0.00020986,2]
[342096619,1731436244775,-2888.0,0.00021149,2]
[342096620,1731436244785,-159.46125,0.00021161,2]
[342096621,1731436244794,-185.861,0.00021161,2]
[342096622,1731436244803,-1624.26496401,0.00021174,2]
[342096623,1731436244812,-823.88,0.0002146,3]
[342096624,1731436244821,-411.94,0.0002146,3]
[342096625,1731436244830,-411.94,0.0002146,3]
[342096626,1731436244839,-494.24502818,0.00021492,2]
[342096627,1731436244848,-6778.11219984,0.00021508,2]
[342096628,1731436244856,-504.94956555,0.00021622,2]
[342096629,1731436244869,-1000.0,0.00021622,2]
[342096630,1731436244879,-449.6665764,0.00021622,2]
[342096631,1731436244888,-556.10778659,0.00021622,2]
[342096632,1731436244898,-500.0,0.00021622,2]
[342096633,1731436244907,-500.0,0.00021622,2]
[342096634,1731436244916,-500.0,0.00021622,2]
[342096635,1731436244925,-420.0,0.00021776,2]
[342096636,1731436244934,-363.80856673,0.00021817,7]
[342096637,1731436244944,-3000.0,0.00021817,2]
[342096638,1731436244954,-3000.0,0.000219,2]
[342096639,1731436244964,-3000.0,0.0002191,2]
[342096640,1731436244973,-150.01,0.00021916,2]
[342096641,1731436244983,-7240.83997473,0.00021916,2]
[342096642,1731436244992,-151.0,0.00021917,2]
[342096643,1731436245002,-151.0,0.00021917,2]
[342096644,1731436245011,-151.0,0.00021917,2]
[342096645,1731436245021,-276.78488,0.00021917,2]
[342096646,1731436245031,-151.0,0.00021917,2]
[342096647,1731436245040,-151.0,0.00021917,2]
[342096648,1731436245049,-151.0,0.00021917,2]
[342096649,1731436245058,-226.947493,0.00021917,2]
[342096650,1731436245068,-151.0,0.00021917,2]
[342096651,1731436245078,-151.0,0.00021917,2]
[342096652,1731436245087,-151.0,0.00021917,2]
[342096653,1731436245096,-151.0,0.00021917,2]
[342096654,1731436245106,-217.484024,0.00021917,2]
[342096655,1731436245115,-255.51961,0.00021917,2]
[342096656,1731436245124,-151.0,0.00021917,2]
[342096657,1731436245137,-151.0,0.00021917,2]
[342096658,1731436245147,-151.0,0.00021917,2]
[342096659,1731436245156,-151.0,0.00021917,2]
[342096660,1731436245166,-151.0,0.00021917,2]
[342096661,1731436245175,-268.083423,0.00021917,2]
[342096662,1731436245184,-151.0,0.00021917,2]
[342096663,1731436245194,-151.0,0.00021917,2]
[342096664,1731436245203,-151.0,0.00021917,2]
[342096665,1731436245212,-151.0,0.00021917,2]
[342096666,1731436245221,-151.0,0.00021917,2]
[342096667,1731436245230,-151.0,0.00021917,2]
[342096668,1731436245240,-151.0,0.00021917,2]
[342096669,1731436245249,-151.0,0.00021917,2]
[342096670,1731436245258,-151.0,0.00021917,2]
[342096671,1731436245267,-151.0,0.00021917,2]
[342096672,1731436245276,-157.12888,0.00021917,2]
[342096673,1731436245285,-152.806068,0.00021917,2]
[342096674,1731436245294,-265.008409,0.00021917,2]
[342096675,1731436245303,-151.0,0.00021917,2]
[342096676,1731436245312,-151.0,0.00021917,2]
[342096677,1731436245321,-151.0,0.00021917,2]
[342096678,1731436245330,-151.0,0.00021917,2]
[342096679,1731436245339,-151.0,0.00021917,2]
[342096680,1731436245348,-192.536393,0.00021917,2]
[342096681,1731436245357,-536.22327276,0.00021917,2]
[342096682,1731436245367,-500.0,0.00021917,2]
[342096683,1731436245376,-151.0,0.00021917,2]
[342096684,1731436245391,-191.783028,0.00021917,2]
[342096685,1731436245400,-151.0,0.00021917,2]
[342096686,1731436245409,-151.0,0.00021917,2]
[342096687,1731436245418,-207.713733,0.00021917,2]
[342096688,1731436245426,-404.174528,0.00021917,2]
[342096689,1731436245436,-404.174528,0.00021917,2]
[342096690,1731436245446,-404.174528,0.00021917,2]
[342096691,1731436245455,-404.174528,0.00021917,2]
[342096692,1731436245464,-404.174528,0.00021917,2]
[342096693,1731436245474,-404.174528,0.00021917,2]
[342096694,1731436245483,-404.174528,0.00021917,2]
[342096695,1731436245493,-500.0,0.00021917,2]
[342096696,1731436245503,-500.0,0.00021917,2]
[342096697,1731436245512,-500.0,0.00021917,2]
[342096698,1731436245522,-404.174528,0.00021917,2]
[342096699,1731436245532,-404.174528,0.00021917,2]
[342096700,1731436245542,-404.174528,0.00021917,2]
[342096701,1731436245552,-404.174528,0.00021917,2]
[342096702,1731436245561,-404.174528,0.00021917,2]
[342096703,1731436245570,-151.0,0.00021917,2]
[342096704,1731436245580,-404.174528,0.00021917,2]
[342096705,1731436245590,-151.0,0.00021917,2]
[342096706,1731436245600,-404.174528,0.00021917,2]
[342096707,1731436245610,-151.0,0.00021917,2]
[342096708,1731436245620,-404.174528,0.00021917,2]